bitfinex/quotes_SOLUSD_20240708
["timestamp","ask_amount","ask_price","bid_price","bid_amount"]
[1720465544513,20.0,138.21,138.17,7.2373]
[1720465545097,16.2767,138.21,138.16,25.3317]
[1720465545298,20.17,138.2,138.15,7.2383]
[1720465546615,6.3927,138.19,138.13,18.0979]
[1720465546815,20.17,138.18,138.14,7.2389]
[1720465547003,20.0,138.18,138.15,7.238]
[1720465547314,20.0,138.18,138.14,7.2389]
[1720465547495,6.5627,138.19,138.14,18.0966]
[1720465547688,6.5627,138.19,138.16,7.2377]
[1720465548309,6.3927,138.19,138.16,7.2377]
[1720465548506,6.3927,138.19,138.17,7.2374]
[1720465548699,6.3927,138.19,138.16,18.0947]
[1720465548913,16.2767,138.21,138.18,7.2369]
[1720465549107,20.0,138.2,138.16,18.0947]
[1720465550101,20.0,138.2,138.16,25.3324]
[1720465550404,20.0,138.2,138.16,18.0947]
[1720465550609,27.2359,138.2,138.15,7.2383]
[1720465551225,20.0,138.2,138.15,7.2383]
[1720465551593,20.0,138.2,138.16,7.2378]
[1720465552096,20.0,138.2,138.15,18.0961]
[1720465552097,27.2361,138.2,138.15,18.0961]
[1720465552295,20.0,138.2,138.11,100.0]
[1720465552497,20.0,138.2,138.15,7.2381]
[1720465552701,0.17,138.19,138.14,25.3359]
[1720465553110,7.4064,138.19,138.14,25.3359]
[1720465553303,20.0,138.18,138.14,18.0974]
[1720465553829,0.17,138.17,138.14,18.0974]
[1720465554403,0.17,138.17,138.14,25.3363]
[1720465556112,20.0,138.19,138.16,7.2379]
[1720465556306,0.17,138.18,138.16,7.2379]
[1720465556630,0.17,138.19,138.16,7.2379]
[1720465557223,0.17,138.19,138.15,7.2382]
[1720465557811,0.17,138.19,138.14,25.3362]
[1720465558013,7.4064,138.19,138.14,25.3362]
[1720465558746,20.0,138.18,138.14,25.3362]
[1720465559219,0.17,138.17,138.14,25.3362]
[1720465559422,20.17,138.19,138.15,7.2384]
[1720465561713,27.4066,138.19,138.14,18.0974]
[1720465562029,20.17,138.19,138.09,16.1031]
[1720465562244,7.2375,138.17,138.11,18.1002]
[1720465562436,20.17,138.16,138.11,18.1002]
[1720465562648,26.42,138.16,138.12,7.2397]
[1720465562824,26.42,138.16,138.11,18.1002]
[1720465563224,26.25,138.16,138.13,18.0987]
[1720465563826,26.25,138.16,138.13,25.3381]
[1720465564034,26.25,138.16,138.1,18.1016]
[1720465564543,26.25,138.16,138.12,18.1]
[1720465565538,26.25,138.16,138.12,25.3398]
[1720465566330,0.17,138.15,138.1,7.2408]
[1720465566522,0.17,138.15,138.09,18.1029]
[1720465566853,0.17,138.15,138.11,7.2402]
[1720465568344,7.2396,138.13,138.09,18.1029]
[1720465568527,27.2401,138.12,138.07,7.2424]
[1720465569343,0.17,138.11,138.07,7.2424]
[1720465569555,6.5175,138.1,138.06,18.1072]
[1720465569722,20.0,138.09,138.06,25.3503]
[1720465572426,20.0,138.09,138.06,18.1072]
[1720465573355,20.0,138.09,138.07,7.2426]
[1720465573863,7.55318005,138.12,138.09,7.2416]
[1720465574024,0.17,138.13,138.09,7.2416]
[1720465574227,6.1051,138.14,138.09,7.2416]
[1720465575144,7.55086618,138.15,138.09,0.17]
[1720465575345,51.1711,138.24,138.09,0.17]
[1720465575346,6.1173,138.21,138.14,18.0972]
[1720465575858,6.1173,138.21,138.16,7.2376]
[1720465576040,6.1173,138.21,138.16,18.0946]
[1720465576652,6.1173,138.21,138.16,25.3323]
[1720465577023,20.0,138.2,138.14,7.2385]
[1720465577430,20.0,138.2,138.15,7.2384]
[1720465577635,20.0,138.2,138.16,7.2379]
[1720465578239,27.2363,138.2,138.15,18.0959]
[1720465578438,27.2363,138.2,138.09,140.26]
[1720465578439,20.0,138.2,138.12,18.0994]
[1720465578640,0.17,138.19,138.14,7.2389]
[1720465578837,27.236,138.2,138.15,7.2383]
[1720465579044,20.0,138.2,138.15,7.2383]
[1720465579252,0.17,138.19,138.15,7.2383]
[1720465579448,0.17,138.19,138.14,25.3358]
[1720465579954,0.17,138.19,138.11,18.1004]
[1720465580251,7.238,138.16,138.11,25.3409]
[1720465580553,0.17,138.15,138.11,25.3409]
[1720465580933,0.17,138.19,138.11,25.3409]
[1720465580934,7.2371,138.18,138.12,7.2399]
[1720465581128,20.17,138.17,138.13,7.2395]
[1720465581358,20.0,138.17,138.16,7.2379]
[1720465581554,6.1173,138.21,138.12,0.17]
[1720465582062,6.1173,138.21,138.17,25.3308]
[1720465582355,6.1173,138.21,138.17,18.0935]
[1720465582738,20.0,138.2,138.17,18.0935]
[1720465583756,20.0,138.2,138.17,25.3308]
[1720465584534,6.1173,138.21,138.18,7.2368]
[1720465584734,6.1173,138.21,138.19,7.2362]
[1720465585852,15.4292,138.22,138.19,7.2362]
[1720465586056,20.0,138.21,138.18,7.2367]
[1720465586359,20.0,138.21,138.17,18.0935]
[1720465586547,20.0,138.21,138.14,18.0972]
[1720465586859,27.2355,138.21,138.15,7.2381]
[1720465587666,27.2355,138.21,138.16,7.2378]
[1720465588266,20.0,138.21,138.16,7.2378]
[1720465589346,20.0,138.21,138.17,7.2373]
[1720465589743,27.2356,138.21,138.16,25.3323]
[1720465589944,0.17,138.2,138.16,25.3323]
[1720465591046,0.17,138.2,138.17,7.2373]
[1720465591461,0.17,138.2,138.18,7.2369]
[1720465591960,20.0,138.21,138.18,7.2369]
[1720465591961,20.0,138.21,138.18,18.0919]
[1720465592258,20.0,138.21,138.18,25.3286]
[1720465592769,15.4292,138.22,138.21,18.0884]
[1720465593067,20.0,138.22,138.19,7.2359]
[1720465593776,20.0,138.23,138.19,7.2359]
[1720465594650,20.0,138.23,138.2,18.0896]
[1720465595364,20.0,138.23,138.2,25.3251]
[1720465599574,20.0,138.23,138.21,7.2352]
[1720465600148,20.0,138.23,138.2,18.0896]
[1720465600351,20.0,138.23,138.18,7.2367]
[1720465600973,20.0,138.23,138.19,7.2362]
[1720465603377,20.0,138.23,138.2,7.2358]
[1720465607275,20.0,138.23,138.15,18.0949]
[1720465607578,20.0,138.23,138.15,0.17]
[1720465608253,27.2344,138.23,138.18,7.2366]
[1720465608454,20.0,138.23,138.19,7.2363]
[1720465609172,27.2344,138.23,138.17,25.3305]
[1720465609379,0.17,138.22,138.18,7.2368]
[1720465611481,7.405,138.22,138.17,25.3308]
[1720465611791,20.0,138.21,138.17,25.3308]
[1720465611985,20.0,138.21,138.17,18.0935]
[1720465612360,20.17,138.22,138.17,18.0935]
[1720465612574,0.17,138.22,138.17,18.0935]
[1720465612877,0.17,138.22,138.18,7.2366]
[1720465615280,20.0,138.23,138.2,7.2357]
[1720465615706,20.0,138.23,138.21,25.3235]
[1720465616311,20.0,138.23,138.22,7.2348]
[1720465617583,6.2132,138.24,138.21,18.0884]
[1720465617785,20.0,138.23,138.21,18.0884]
[1720465618767,20.0,138.23,138.22,7.2348]
[1720465620083,7.5504031,138.27,138.23,18.0853]
[1720465620283,7.5504031,138.27,138.24,7.2333]
[1720465620479,21.736,138.28,138.23,25.3194]
[1720465621501,27.2323,138.27,138.22,7.2346]
[1720465621687,27.2323,138.27,138.2,25.3242]
[1720465621688,7.4029,138.26,138.2,25.3242]
[1720465621996,20.0,138.25,138.2,25.3242]
[1720465622687,20.0,138.25,138.21,7.235]
[1720465622893,20.0,138.25,138.22,7.2347]
[1720465623085,0.17,138.26,138.22,7.2347]
[1720465624380,0.17,138.26,138.21,7.2351]
[1720465624605,7.4029,138.26,138.21,7.2351]
[1720465624804,20.0,138.25,138.21,7.2351]
[1720465625015,20.0,138.25,138.2,18.0887]
[1720465625194,6.5624,138.24,138.17,18.0928]
[1720465625503,6.5624,138.24,138.14,25.3352]
[1720465625504,7.236,138.2,138.14,25.3352]
[1720465625705,20.0,138.19,138.14,25.3352]
[1720465625912,20.0,138.19,138.15,7.2385]
[1720465626478,20.17,138.2,138.15,7.2385]
[1720465626710,0.17,138.19,138.16,7.2379]
[1720465627500,18.5,138.17,138.07,46.9448523]
[1720465627698,18.5,138.17,138.03,22.396]
[1720465627699,7.2393,138.14,138.08,25.3471]
[1720465627997,25.5693,138.14,138.08,25.3468]
[1720465628311,20.17,138.13,138.09,7.2415]
[1720465628816,20.0,138.13,138.1,25.3428]
[1720465629197,20.0,138.13,138.11,7.2405]
[1720465629399,20.0,138.13,138.1,25.3431]
[1720465629582,20.0,138.13,138.11,7.2404]
[1720465629785,29.78,138.18,138.13,7.2395]
[1720465629985,27.4075,138.17,138.12,7.2399]
[1720465630715,20.17,138.17,138.12,7.2399]
[1720465631299,20.0,138.17,138.12,18.0999]
[1720465631497,30.10746567,138.18,138.11,0.17]
[1720465631730,22.543,138.18,138.11,0.17]
[1720465631929,47.89569888,138.22,138.16,18.0947]
[1720465632303,47.89569888,138.22,138.11,0.17]
[1720465632304,7.56359888,138.22,138.21,7.2353]
[1720465632507,22.0021,138.26,138.21,7.2353]
[1720465632812,22.0021,138.26,138.22,7.2347]
[1720465633874,22.0021,138.26,138.23,7.2342]
[1720465634005,6.2328,138.26,138.23,7.2342]
[1720465635431,6.2328,138.26,138.22,7.2347]
[1720465635628,6.2328,138.26,138.2,18.0886]
[1720465635937,6.2328,138.26,138.21,7.2353]
[1720465636118,6.2328,138.26,138.21,7.2352]
[1720465636307,6.2328,138.26,138.2,18.0886]
[1720465637031,6.2328,138.26,138.23,7.2343]
[1720465638022,6.2328,138.26,138.24,7.2336]
[1720465638250,6.2328,138.26,138.25,7.2332]
[1720465638448,29.80611879,138.29,138.25,7.2332]
[1720465638631,20.0,138.28,138.25,7.2332]
[1720465638953,20.0,138.28,138.24,18.084]
[1720465639964,20.0,138.28,138.21,18.0875]
[1720465640118,20.0,138.28,138.14,221.5237]
[1720465640119,7.2334,138.25,138.19,7.2363]
[1720465640320,0.17,138.24,138.19,7.2363]
[1720465640655,7.2328,138.26,138.2,7.2355]
[1720465640834,20.0,138.25,138.2,7.2355]
[1720465641545,20.0,138.25,138.21,7.2353]
[1720465641856,20.0,138.25,138.22,7.2346]
[1720465642031,20.0,138.25,138.2,18.0893]
[1720465642032,29.80611879,138.29,138.2,0.17]
[1720465642220,29.80611879,138.29,138.22,0.17]
[1720465642431,22.2426,138.29,138.27,7.2321]
[1720465643047,22.2426,138.29,138.26,25.3141]
[1720465643461,22.2426,138.29,138.27,7.2322]
[1720465644659,22.2426,138.29,138.26,25.3141]
[1720465645251,22.2426,138.29,138.25,7.233]
[1720465646331,22.2426,138.29,138.26,7.2326]
[1720465646527,22.2426,138.29,138.25,18.0827]
[1720465646733,22.2426,138.29,138.27,18.0804]
[1720465647856,22.2426,138.29,138.25,7.2331]
[1720465648061,22.2426,138.29,138.24,25.3172]
[1720465648231,20.0,138.28,138.24,18.0838]
[1720465649433,20.0,138.28,138.25,7.2329]
[1720465649749,20.0,138.28,138.24,25.3174]
[1720465650324,27.2318,138.28,138.22,7.2344]
[1720465650521,7.4022,138.27,138.21,25.3221]
[1720465650726,20.0,138.26,138.21,18.0872]
[1720465651027,20.0,138.26,138.23,18.0851]
[1720465651229,0.17,138.27,138.23,18.0851]
[1720465651757,0.17,138.27,138.2,18.0886]
[1720465652147,0.17,138.27,138.22,7.2344]
[1720465652548,7.4022,138.27,138.22,7.2344]
[1720465652738,20.0,138.26,138.22,7.2344]
[1720465653130,20.0,138.26,138.23,7.2342]
[1720465653347,20.17,138.27,138.23,7.2342]
[1720465654865,20.17,138.27,138.22,25.3214]
[1720465655046,27.4022,138.27,138.22,18.0868]
[1720465655240,20.17,138.27,138.19,18.09]
[1720465655447,0.17,138.26,138.19,18.09]
[1720465655958,6.5793,138.23,138.18,7.2365]
[1720465656144,22.476,138.23,138.15,5.78851557]
[1720465656335,22.476,138.23,138.18,18.0922]
[1720465656525,22.476,138.23,138.2,7.2358]
[1720465657953,22.476,138.23,138.21,7.2351]
[1720465658458,15.5941,138.26,138.22,7.2348]
[1720465658635,20.0,138.25,138.21,7.2351]
[1720465658835,20.0,138.25,138.2,18.0893]
[1720465658836,20.0,138.25,138.22,7.2346]
[1720465659437,15.5941,138.26,138.22,7.2346]
[1720465663235,15.5941,138.26,138.21,7.2351]
[1720465663636,22.8268,138.26,138.2,25.325]
[1720465663847,22.8268,138.26,138.21,7.2352]
[1720465664059,15.5941,138.26,138.21,7.2352]
[1720465665663,22.8269,138.26,138.21,7.2352]
[1720465666464,15.5941,138.26,138.21,7.2352]
[1720465667464,15.5941,138.26,138.22,7.2346]
[1720465668880,7.56666367,138.28,138.24,25.3177]
[1720465669052,18.33,138.29,138.24,25.3177]
[1720465669369,7.2313,138.29,138.24,25.3177]
[1720465669569,13.83718666,138.3,138.24,18.0843]
[1720465669740,13.83718666,138.3,138.26,18.0818]
[1720465670060,6.2692,138.3,138.26,25.3142]
[1720465670770,6.2692,138.3,138.27,7.2322]
[1720465671067,21.65868044,138.31,138.28,18.0791]
[1720465671068,15.348,138.31,138.28,18.0791]
[1720465671241,15.348,138.31,138.29,7.2308]
[1720465671443,25.89694805,138.33,138.31,7.2297]
[1720465671444,7.56694805,138.33,138.31,7.2297]
[1720465671657,6.5898,138.34,138.32,7.2292]
[1720465671854,6.5898,138.34,138.32,25.3031]
[1720465673148,6.5898,138.34,138.31,7.2301]
[1720465673363,6.5898,138.34,138.3,7.2304]
[1720465675980,6.5898,138.34,138.31,7.23]
[1720465677181,6.5898,138.34,138.3,7.2304]
[1720465678083,6.5898,138.34,138.31,18.0749]
[1720465678467,6.5898,138.34,138.33,7.229]
[1720465679459,6.5898,138.34,138.31,18.0749]
[1720465679880,6.5898,138.34,138.31,25.3047]
[1720465682477,16.0169,138.37,138.33,7.229]
[1720465682655,16.0169,138.37,138.33,18.0726]
[1720465683488,16.0169,138.37,138.34,7.2283]
[1720465684796,16.0169,138.37,138.33,25.3015]
[1720465684962,23.2441,138.37,138.33,18.0726]
[1720465685161,7.2276,138.36,138.31,7.23]
[1720465685465,0.17,138.35,138.31,7.23]
[1720465685859,0.17,138.35,138.28,18.0792]
[1720465686067,0.17,138.36,138.26,157.9215]
[1720465686273,16.0169,138.37,138.33,7.229]
[1720465686489,16.0169,138.37,138.33,25.3015]
[1720465687079,23.2439,138.37,138.33,25.3015]
[1720465687391,23.2439,138.37,138.33,18.0725]
[1720465687692,7.2277,138.36,138.31,25.3054]
[1720465687881,16.0169,138.37,138.31,18.0753]
[1720465688294,16.0169,138.37,138.36,7.2275]
[1720465688506,6.3734,138.38,138.36,7.2275]
[1720465688667,6.3734,138.38,138.35,25.2978]
[1720465688865,16.5532,138.4,138.36,7.2274]
[1720465689213,16.5532,138.4,138.35,18.07]
[1720465689485,16.5532,138.4,138.34,7.228]
[1720465689486,7.2259,138.39,138.34,7.228]
[1720465689690,7.2259,138.39,138.33,7.2289]
[1720465690187,16.5532,138.4,138.32,25.3026]
[1720465690387,7.227,138.37,138.32,25.3026]
[1720465690576,7.2266,138.38,138.32,25.3026]
[1720465690773,0.17,138.37,138.32,25.3026]
[1720465691088,6.4368,138.36,138.29,18.0774]
[1720465691263,13.6648,138.36,138.29,18.0774]
[1720465691464,6.4368,138.36,138.31,7.23]
[1720465691670,6.4368,138.36,138.32,7.2295]
[1720465692267,0.17,138.35,138.28,18.0783]
[1720465692489,16.6018,138.34,138.27,7.2321]
[1720465692665,16.6018,138.34,138.26,16.1419]
[1720465692666,7.2297,138.32,138.24,6.5318]
[1720465692865,7.2292,138.33,138.27,7.2318]
[1720465693091,23.8305,138.34,138.29,7.2311]
[1720465693290,0.17,138.33,138.29,7.2311]
[1720465694284,16.6018,138.34,138.31,7.23]
[1720465695089,13.6648,138.36,138.32,18.0737]
[1720465695090,6.4368,138.36,138.32,18.0737]
[1720465695290,6.4368,138.36,138.33,7.2285]
[1720465695675,6.4368,138.36,138.32,25.3032]
[1720465695874,13.6644,138.36,138.31,7.2298]
[1720465696495,0.17,138.35,138.29,18.0769]
[1720465696876,7.2288,138.34,138.29,25.3078]
[1720465697073,7.3981,138.35,138.3,7.2305]
[1720465697472,0.17,138.35,138.3,7.2305]
[1720465697674,0.17,138.35,138.31,7.2299]
[1720465698576,6.4368,138.36,138.33,7.229]
[1720465699401,6.4368,138.36,138.31,18.075]
[1720465699570,0.17,138.35,138.28,18.0781]
[1720465700597,7.2289,138.34,138.28,18.0781]
[1720465700892,0.17,138.33,138.28,25.3096]
[1720465701098,0.17,138.33,138.25,54.2462]
[1720465701099,23.0641,138.32,138.25,54.2462]
[1720465701423,23.0641,138.32,138.26,7.2322]
[1720465701578,23.0641,138.32,138.27,7.2319]
[1720465701776,7.2309,138.3,138.25,18.0822]
[1720465702000,0.17,138.29,138.22,18.0861]
[1720465702694,13.561,138.28,138.23,7.2341]
[1720465702902,6.3293,138.28,138.23,7.2341]
[1720465703201,6.3293,138.28,138.22,18.0861]
[1720465703202,6.3293,138.28,138.24,7.2336]
[1720465703583,6.3293,138.28,138.24,25.3179]
[1720465705609,23.3748,138.26,138.21,25.3222]
[1720465705914,0.17,138.25,138.21,25.3222]
[1720465706208,0.17,138.25,138.2,7.2358]
[1720465706504,7.4034,138.25,138.2,7.2358]
[1720465706704,0.17,138.25,138.21,7.2353]
[1720465707211,0.17,138.25,138.22,7.2347]
[1720465707621,0.17,138.25,138.21,7.2351]
[1720465707830,0.17,138.25,138.2,18.0894]
[1720465708004,7.4035,138.25,138.2,25.3251]
[1720465708954,0.17,138.25,138.21,7.2352]
[1720465709231,7.4033,138.25,138.2,25.3251]
[1720465709711,14.97182998,138.25,138.2,25.3251]
[1720465710118,6.2672,138.23,138.17,25.3299]
[1720465710411,7.4048,138.22,138.17,25.3301]
[1720465711099,0.17,138.22,138.18,7.2367]
[1720465711298,6.2672,138.23,138.19,18.0904]
[1720465711608,6.2672,138.23,138.2,7.2357]
[1720465711810,6.2672,138.23,138.21,18.088]
[1720465712107,6.2672,138.23,138.22,7.2348]
[1720465712308,6.2672,138.23,138.21,25.3231]
[1720465712509,7.56852998,138.25,138.21,25.3231]
[1720465713033,7.56852998,138.25,138.22,7.2348]
[1720465713208,22.7181,138.26,138.22,7.2348]
[1720465714430,0.17,138.25,138.23,7.2338]
[1720465714733,22.7181,138.26,138.23,7.2338]
[1720465715823,22.7181,138.26,138.22,7.2348]
[1720465716034,29.951,138.26,138.21,25.3231]
[1720465716218,0.17,138.25,138.21,25.3231]
[1720465716608,0.17,138.25,138.22,7.2347]
[1720465717127,0.17,138.25,138.21,25.3231]
[1720465717318,0.17,138.25,138.18,18.0911]
[1720465717520,7.4034,138.25,138.18,18.0911]
[1720465717721,7.4034,138.25,138.2,7.2357]
[1720465718025,7.4033,138.25,138.2,25.3252]
[1720465718434,0.34,138.25,138.18,7.2368]
[1720465718736,7.2339,138.24,138.19,7.2363]
[1720465719125,0.17,138.23,138.19,7.2363]
[1720465719542,0.17,138.23,138.2,7.2358]
[1720465719829,0.17,138.23,138.19,25.3269]
[1720465720050,0.17,138.23,138.16,18.0939]
[1720465720212,7.2352,138.22,138.17,7.2373]
[1720465720412,21.8583,138.21,138.17,7.2373]
[1720465722238,29.0936,138.21,138.16,25.3317]
[1720465722815,21.8583,138.21,138.17,7.2374]
[1720465723315,21.8583,138.21,138.18,7.2368]
[1720465723718,21.8583,138.21,138.17,7.2372]
[1720465724612,29.0941,138.21,138.16,18.0939]
[1720465725012,29.0941,138.21,138.16,25.3318]
[1720465725239,7.57169764,138.2,138.17,7.2374]
[1720465726017,7.57169764,138.2,138.18,7.2369]
[1720465726348,21.8583,138.21,138.19,7.2363]
[1720465726520,21.8583,138.21,138.18,25.3283]
[1720465727040,21.6883,138.21,138.19,7.2361]
[1720465727829,21.6883,138.21,138.18,18.0916]
[1720465728237,21.6883,138.21,138.18,25.3283]
[1720465728421,21.6883,138.21,138.19,7.2362]
[1720465729324,21.6883,138.21,138.18,25.3283]
[1720465730744,21.6883,138.21,138.19,7.2363]
[1720465730921,7.5722417,138.23,138.19,7.2363]
[1720465731243,7.5722417,138.23,138.2,7.2358]
[1720465731463,7.5722417,138.23,138.18,18.0916]
[1720465731464,7.5722417,138.23,138.19,7.2362]
[1720465731942,14.8070417,138.23,138.18,18.0916]
[1720465732247,7.5722417,138.23,138.19,7.236]
[1720465732839,7.5722417,138.23,138.18,18.0916]
[1720465733832,0.17,138.22,138.18,25.3284]
[1720465734427,7.4048,138.22,138.18,18.0916]
[1720465735852,0.17,138.22,138.18,25.3284]
[1720465736030,0.17,138.22,138.18,18.0916]
[1720465736225,7.5722417,138.23,138.18,18.0916]
[1720465736628,7.5722417,138.23,138.2,7.2358]
[1720465736824,7.5722417,138.23,138.22,7.2348]
[1720465737147,6.2085,138.27,138.21,0.17]
[1720465737466,6.2085,138.27,138.21,120.17]
[1720465737621,16.5286,138.28,138.26,7.2327]
[1720465738551,16.5286,138.28,138.25,25.3159]
[1720465739646,13.77839138,138.3,138.26,7.2327]
[1720465740350,21.00899138,138.3,138.25,25.3158]
[1720465740552,13.77839138,138.3,138.25,18.0828]
[1720465740724,7.2313,138.29,138.25,18.0828]
[1720465740924,13.77839138,138.3,138.22,18.0861]
[1720465741129,7.4013,138.29,138.24,7.2337]
[1720465741662,0.17,138.29,138.25,7.2332]
[1720465741824,21.00909138,138.3,138.24,18.0843]
[1720465741825,7.56989138,138.3,138.28,7.2312]
[1720465742161,15.3318,138.31,138.25,18.0821]
[1720465742443,7.2312,138.29,138.25,18.0821]
[1720465742623,15.3318,138.31,138.22,18.0862]
[1720465743034,7.232,138.28,138.23,7.234]
[1720465743426,7.2313,138.29,138.23,7.234]
[1720465743744,7.2318,138.28,138.23,7.234]
[1720465743930,7.4018,138.28,138.23,7.234]
[1720465744134,7.2318,138.28,138.23,7.234]
[1720465744754,6.4877,138.28,138.24,7.2337]
[1720465747525,6.4877,138.28,138.22,25.321]
[1720465747526,7.2325,138.27,138.22,25.321]
[1720465747732,16.4042,138.25,138.2,7.2355]
[1720465747927,0.17,138.24,138.19,18.0901]
[1720465748155,6.4869,138.23,138.18,7.2368]
[1720465748327,0.17,138.22,138.18,7.2368]
[1720465748743,0.17,138.22,138.16,18.0937]
[1720465749031,7.2357,138.21,138.16,25.3316]
[1720465749340,0.17,138.2,138.16,25.3316]
[1720465749847,0.17,138.2,138.17,7.2374]
[1720465750063,0.17,138.21,138.17,7.2374]
[1720465750941,7.4053,138.21,138.16,25.3315]
[1720465752146,0.17,138.21,138.17,7.2373]
[1720465752952,7.4054,138.21,138.16,25.3315]
[1720465753862,0.17,138.21,138.17,7.2373]
[1720465756643,7.4053,138.21,138.16,25.3314]
[1720465756843,7.4053,138.21,138.16,18.0937]
[1720465756844,7.2359,138.2,138.16,18.0937]
[1720465757037,0.17,138.19,138.16,18.0937]
[1720465757759,0.17,138.19,138.16,25.3315]
[1720465758061,0.17,138.2,138.16,25.3315]
[1720465758249,7.56650885,138.22,138.16,18.0937]
[1720465758947,0.17,138.21,138.16,18.0937]
[1720465759460,6.4525,138.19,138.16,18.0937]
[1720465759680,6.4525,138.19,138.13,18.0981]
[1720465760568,6.4525,138.19,138.15,18.0962]
[1720465760769,6.4525,138.19,138.16,7.2378]
[1720465760978,6.4525,138.19,138.18,7.2369]
[1720465761359,15.8362,138.2,138.18,7.2369]
[1720465761871,15.8362,138.2,138.17,25.3307]
[1720465762652,15.8362,138.2,138.17,18.0933]
[1720465762970,23.0722,138.2,138.15,7.2383]
[1720465763147,23.40421552,138.2,138.17,7.2373]
[1720465764165,7.56801552,138.2,138.18,25.329]
[1720465764846,7.56801552,138.2,138.18,18.0922]
[1720465765042,7.56801552,138.2,138.16,7.2375]
[1720465765472,7.56801552,138.2,138.17,7.2374]
[1720465766562,7.56801552,138.2,138.16,7.2377]
[1720465767170,7.56801552,138.2,138.17,7.2373]
[1720465768874,7.56801552,138.2,138.16,7.2378]
[1720465769168,7.56801552,138.2,138.15,18.0952]
[1720465769371,14.80401552,138.2,138.15,25.3335]
[1720465769775,14.80401552,138.2,138.16,7.2379]
[1720465769975,7.56801552,138.2,138.16,7.2379]
[1720465770767,7.56801552,138.2,138.17,7.2374]
[1720465771573,7.56801552,138.2,138.19,7.2364]
[1720465772679,7.56801552,138.2,138.19,25.3274]
[1720465774967,6.0585,138.22,138.19,25.3274]
[1720465776158,6.0585,138.22,138.16,18.0937]
[1720465776367,0.17,138.21,138.16,18.0937]
[1720465776670,7.2359,138.2,138.16,18.0937]
[1720465777479,0.17,138.21,138.16,18.0937]
[1720465777480,7.4056,138.21,138.16,25.3315]
[1720465778575,0.17,138.21,138.1,41.9926688]
[1720465778763,15.7398,138.2,138.15,7.2382]
[1720465778966,7.4065,138.19,138.14,7.2388]
[1720465779173,7.2371,138.18,138.13,25.3372]
[1720465780193,0.17,138.17,138.13,25.3372]
[1720465780558,13.7347,138.17,138.13,18.0978]
[1720465781194,6.4972,138.17,138.13,25.3373]
[1720465781517,13.735,138.17,138.1,36.2041]
[1720465782190,6.4972,138.17,138.13,7.2395]
[1720465782559,6.4972,138.17,138.14,18.0974]
[1720465782770,6.3272,138.17,138.14,25.3361]
[1720465782976,6.3272,138.17,138.14,18.0974]
[1720465783174,6.3272,138.17,138.13,7.2393]
[1720465783370,0.17,138.16,138.13,7.2393]
[1720465783967,6.3272,138.17,138.14,7.2389]
[1720465785061,6.3272,138.17,138.1,136.2041]
[1720465785261,6.3272,138.17,138.16,7.2379]
[1720465785783,6.3272,138.17,138.16,25.3328]
[1720465785982,6.3272,138.17,138.16,18.0949]
[1720465786458,6.3272,138.17,138.14,7.2388]
[1720465786661,6.3272,138.17,138.13,18.0981]